bitfinex-derivatives/quotes_BTCF0:USTF0_20210707
["timestamp","ask_amount","ask_price","bid_price","bid_amount"]
[1625667578731,1.37547921,34743.0,34742.0,0.24057544]
[1625667578971,1.34157001,34743.0,34742.0,0.24057544]
[1625667582458,1.37547952,34743.0,34742.0,0.24057544]
[1625667582758,1.34157001,34743.0,34742.0,0.24057544]
[1625667583359,1.37547916,34743.0,34742.0,0.24057544]
[1625667583901,1.34157001,34743.0,34742.0,0.24057544]
[1625667584501,1.37547919,34743.0,34742.0,0.24057544]
[1625667585224,1.34157001,34743.0,34742.0,0.24057544]
[1625667585344,1.32734111,34743.0,34742.0,0.24057544]
[1625667585468,1.34157119,34743.0,34742.0,0.24057544]
[1625667585827,1.37548054,34743.0,34742.0,0.24057544]
[1625667589612,2.53772691,34743.0,34742.0,1.42601058]
[1625667596524,3.53401091,34743.0,34742.0,2.70810497]
[1625667605479,3.53401091,34743.0,34742.0,4.06304964]
[1625667605599,3.53401091,34743.0,34742.0,4.06754072]
[1625667606621,3.50010156,34743.0,34742.0,4.06754072]
[1625667609322,4.00007354,34743.0,34742.0,4.57551258]
[1625667609803,4.00007354,34743.0,34742.0,4.5710215]
[1625667610892,1.99877354,34743.0,34742.0,4.5710215]
[1625667611070,0.83797354,34743.0,34742.0,4.5710215]
[1625667611192,0.83797354,34743.0,34742.0,4.57551185]
[1625667611492,0.49997198,34743.0,34742.0,6.09926579]
[1625667611851,0.50069153,34744.0,34742.0,6.09926579]
[1625667612091,0.50077018,34745.0,34743.0,2.03149605]
[1625667612271,0.50077018,34745.0,34744.0,2.03148757]
[1625667612513,0.50077018,34745.0,34744.0,2.03599421]
[1625667612756,0.5149471,34745.0,34744.0,2.03599421]
[1625667613175,0.5149471,34745.0,34744.0,2.51714509]
[1625667613594,0.01417692,34745.0,34744.0,2.51714509]
[1625667613835,0.50064368,34747.0,34744.0,2.51714509]
[1625667614314,0.50064368,34747.0,34746.0,2.03041801]
[1625667614554,0.51482042,34747.0,34746.0,6.04231801]
[1625667615220,0.51482042,34747.0,34746.0,6.28289345]
[1625667616361,0.01417674,34747.0,34746.0,6.28289345]
[1625667617083,0.50032424,34748.0,34746.0,6.28289345]
[1625667617323,0.01421005,34747.0,34746.0,5.77528895]
[1625667617564,0.50032424,34748.0,34746.0,6.28249467]
[1625667617684,0.50032424,34748.0,34746.0,6.31399467]
[1625667617807,0.50032424,34748.0,34747.0,2.02881532]
[1625667618164,0.51453426,34748.0,34747.0,2.02881532]
[1625667618285,0.51453426,34748.0,34747.0,0.50720383]
[1625667618644,0.50032424,34748.0,34747.0,0.50720383]
[1625667620332,0.50021231,34749.0,34747.0,0.50720383]
[1625667620572,0.50021231,34749.0,34748.0,0.50693035]
[1625667620989,0.51442221,34749.0,34748.0,0.50693035]
[1625667621234,0.51442221,34749.0,34748.0,0.74750579]
[1625667625377,0.50021231,34749.0,34748.0,0.74750579]
[1625667625621,0.50030824,34750.0,34748.0,0.74750579]
[1625667625858,0.50030824,34750.0,34749.0,0.50675071]
[1625667626038,0.50030824,34750.0,34749.0,0.78369071]
[1625667626159,0.51451701,34750.0,34749.0,2.13502861]
[1625667626702,1.18140934,34750.0,34749.0,2.81058594]
[1625667627061,0.51451701,34750.0,34749.0,2.81058594]
[1625667627300,0.51451701,34750.0,34749.0,3.05116138]
[1625667627301,0.01420877,34750.0,34749.0,3.05116138]
[1625667627541,0.01420831,34750.0,34749.0,3.05116138]
[1625667629349,0.01420792,34750.0,34749.0,3.05116138]
[1625667630429,0.01420773,34751.0,34749.0,3.05116138]
[1625667630968,0.50033116,34753.0,34750.0,2.53140491]
[1625667631210,1.16780341,34755.0,34752.0,3.7126001]
[1625667631450,0.500511,34755.0,34754.0,4.19369468]
[1625667631748,1.16800966,34756.0,34755.0,4.6303]
[1625667631989,0.50084862,34757.0,34755.0,8.34252638]
[1625667632230,0.50097752,34758.0,34756.0,3.71208888]
[1625667632350,0.00057752,34758.0,34756.0,3.50078494]
[1625667632469,1.16872496,34762.0,34756.0,3.50078494]
[1625667632470,0.66761474,34760.0,34757.0,1.85513891]
[1625667632771,0.66811152,34761.0,34759.0,1.85512384]
[1625667633191,0.68222029,34760.0,34759.0,1.18053335]
[1625667633491,0.68222029,34760.0,34759.0,2.33624232]
[1625667634331,0.01420496,34760.0,34759.0,1.15570897]
[1625667635051,0.66799119,34761.0,34759.0,2.3356067]
[1625667635174,0.66799119,34761.0,34760.0,3.8441]
[1625667635412,0.66799119,34761.0,34760.0,4.08467544]
[1625667635533,0.66799119,34761.0,34760.0,4.75890392]
[1625667635773,0.66794997,34762.0,34760.0,4.75890392]
[1625667636014,0.66794997,34762.0,34761.0,0.67393673]
[1625667636554,0.68212938,34762.0,34761.0,0.67393673]
[1625667639084,0.01417941,34762.0,34761.0,0.67393673]
[1625667640166,0.01417949,34763.0,34761.0,0.67393673]
[1625667640407,0.01417949,34762.0,34761.0,0.67393673]
[1625667642090,0.01418327,34763.0,34761.0,0.67393673]
[1625667642330,0.01418327,34762.0,34761.0,0.67393673]
[1625667642573,0.01418324,34763.0,34761.0,0.67393673]
[1625667643474,0.01418324,34763.0,34762.0,0.24057544]
[1625667645639,0.01418318,34764.0,34762.0,0.24057544]
[1625667645879,0.01418318,34763.0,34762.0,0.24057544]
[1625667646180,0.01418327,34764.0,34762.0,0.24057544]
[1625667646364,0.68237688,34764.0,34762.0,0.24057544]
[1625667646485,3.6447833,34763.0,34762.0,0.24057544]
[1625667646663,4.31269995,34763.0,34762.0,0.24057544]
[1625667647683,0.68209995,34763.0,34762.0,0.24057544]
[1625667648225,0.68209995,34763.0,34762.0,5.27697544]
[1625667651656,0.0141833,34763.0,34762.0,5.27697544]
[1625667651833,0.0141833,34763.0,34762.0,5.57392544]
[1625667652613,0.34803962,34763.0,34762.0,5.57392544]
[1625667652852,0.0141833,34763.0,34762.0,5.57392544]
[1625667653333,0.3479512,34763.0,34762.0,5.57392544]
[1625667653814,0.0141833,34763.0,34762.0,5.57392544]
[1625667654235,0.34793971,34763.0,34762.0,5.57392544]
[1625667658264,0.34793971,34763.0,34762.0,5.9103982]
[1625667658745,0.0141833,34763.0,34762.0,5.9103982]
[1625667658986,0.34817502,34763.0,34762.0,5.9103982]
[1625667661755,0.34817502,34763.0,34762.0,5.91489751]
[1625667661872,0.34817502,34763.0,34762.0,5.57842475]
[1625667662353,0.34817502,34763.0,34762.0,6.25168648]
[1625667663073,0.0141833,34763.0,34762.0,6.25168648]
[1625667665603,0.34798438,34763.0,34762.0,7.26206373]
[1625667666985,0.0141833,34763.0,34762.0,7.26206373]
[1625667668427,0.34822049,34763.0,34762.0,8.44154196]
[1625667668668,0.34822049,34763.0,34762.0,7.26206373]
[1625667669148,0.51530162,34763.0,34762.0,7.26206373]
[1625667669392,0.18126443,34763.0,34762.0,8.4415308]
[1625667669629,0.51528787,34763.0,34762.0,8.4415308]
[1625667669873,0.18126443,34763.0,34762.0,8.4415308]
[1625667670352,0.51542769,34763.0,34762.0,8.4415308]
[1625667671380,0.34834656,34763.0,34762.0,8.4415308]
[1625667672342,0.51556879,34763.0,34762.0,8.4415308]
[1625667673304,0.34834656,34763.0,34762.0,8.4415308]
[1625667674924,0.51552775,34763.0,34762.0,9.79077093]
[1625667675168,0.18136449,34763.0,34762.0,9.79077093]
[1625667675406,0.51562688,34763.0,34762.0,9.79077093]
[1625667677092,0.18136449,34763.0,34762.0,9.79077093]
[1625667677332,0.0141833,34763.0,34762.0,9.79077093]
[1625667677815,0.18147154,34763.0,34762.0,9.79077093]
[1625667680401,0.0141833,34763.0,34762.0,9.79077093]
[1625667681062,0.01418802,34764.0,34762.0,9.79077093]
[1625667681182,0.01418802,34764.0,34762.0,11.30940704]
[1625667681302,0.0141879,34763.0,34762.0,11.30940704]
[1625667681420,0.0141879,34763.0,34762.0,7.09706086]
[1625667681541,0.0141879,34763.0,34762.0,10.12983747]
[1625667681661,0.0141879,34763.0,34762.0,11.31100033]
[1625667681840,0.01418766,34764.0,34762.0,11.31549594]
[1625667682081,0.01418766,34763.0,34762.0,11.31549594]
[1625667682381,0.0141876,34764.0,34762.0,11.31549594]
[1625667682562,0.0141876,34764.0,34763.0,5.73789395]
[1625667682680,0.50236505,34766.0,34763.0,5.73789395]
[1625667682926,0.01414751,34764.0,34763.0,5.74240654]
[1625667683042,0.01414751,34764.0,34763.0,1.52336687]
[1625667683164,0.01414751,34765.0,34763.0,1.51885428]
[1625667683342,0.01414751,34765.0,34763.0,5.73790461]
[1625667683462,0.01414751,34764.0,34763.0,1.52336687]
[1625667683763,0.01414751,34764.0,34763.0,5.7378699]
[1625667684002,0.01414753,34765.0,34763.0,5.7423825]
[1625667684122,0.01414753,34765.0,34764.0,4.21853162]
[1625667684243,0.50236505,34766.0,34764.0,4.21853162]
[1625667684367,0.50236505,34766.0,34765.0,4.21979162]
[1625667684725,0.51651261,34766.0,34765.0,4.22430424]
[1625667685809,0.51651261,34766.0,34765.0,4.70545512]
[1625667686350,0.01414756,34766.0,34765.0,6.22482534]
[1625667687372,0.18189025,34766.0,34765.0,6.22482534]
[1625667687611,0.01414756,34766.0,34765.0,6.22482534]
[1625667688751,0.16774792,34767.0,34765.0,6.22482534]
[1625667688995,0.16774792,34767.0,34766.0,0.00451211]
[1625667689114,0.16774792,34767.0,34766.0,5.74483757]
[1625667689237,0.50315117,34767.0,34766.0,5.74483757]
[1625667689355,0.51729786,34767.0,34766.0,5.74483757]
[1625667694464,0.16774792,34767.0,34766.0,5.74483757]
[1625667694646,0.50447494,34767.0,34766.0,5.74483757]
[1625667696086,0.16774792,34767.0,34766.0,5.74483757]
[1625667696327,0.50444887,34767.0,34766.0,2.87476213]
[1625667696507,0.50444887,34767.0,34766.0,2.87025002]
[1625667696629,0.50444887,34767.0,34766.0,5.74059901]
[1625667696867,0.16774792,34767.0,34766.0,5.74059901]
[1625667697467,0.16774792,34767.0,34766.0,5.84359901]
[1625667697588,0.16774792,34767.0,34766.0,5.88369901]
[1625667698910,0.18189439,34767.0,34766.0,5.88369901]
[1625667699270,0.01414647,34767.0,34766.0,5.88369901]
[1625667699391,0.5894104,34768.0,34766.0,5.88369901]
[1625667699810,0.5894104,34768.0,34767.0,4.22017039]
[1625667699929,0.5894104,34768.0,34767.0,4.46525781]
[1625667700051,0.25269835,34768.0,34767.0,4.46525781]
[1625667700169,0.26684477,34768.0,34767.0,4.46525781]
[1625667700291,0.60347029,34768.0,34767.0,8.81805781]
[1625667701493,0.26684477,34768.0,34767.0,10.33713492]
[1625667701858,0.09843528,34768.0,34767.0,10.33713492]
[1625667702214,0.01414642,34768.0,34767.0,10.33713492]
[1625667705346,0.09846953,34769.0,34767.0,10.33713492]
[1625667705589,0.0141414,34769.0,34768.0,5.73723836]
[1625667705710,0.58957651,34770.0,34768.0,5.74175174]
[1625667706009,0.26689101,34769.0,34768.0,0.00451338]
[1625667706129,0.26689101,34769.0,34767.0,6.11207672]
[1625667706249,0.0984474,34769.0,34768.0,4.21827201]
[1625667706435,0.08430594,34769.0,34768.0,4.22278551]
[1625667706732,0.26683279,34769.0,34768.0,4.22278551]
[1625667707933,0.26683279,34769.0,34768.0,4.46336095]
[1625667708353,0.09840766,34769.0,34768.0,4.46336095]
[1625667713700,0.26685153,34769.0,34768.0,4.46336095]
[1625667713939,0.09840766,34769.0,34768.0,4.46336095]
[1625667714364,0.26686427,34769.0,34768.0,4.46336095]
[1625667716042,0.09840766,34769.0,34768.0,4.46336095]
[1625667716283,0.26692041,34769.0,34768.0,4.46336095]
[1625667717425,0.26692041,34769.0,34768.0,5.98250261]
[1625667718866,0.09840766,34769.0,34768.0,5.98250261]
[1625667719048,0.26698072,34769.0,34768.0,5.98250261]
[1625667720490,0.09840766,34769.0,34768.0,5.98250261]
[1625667720610,0.08430594,34769.0,34768.0,5.98250261]
[1625667720850,0.09839925,34769.0,34768.0,5.98250261]
[1625667720972,0.01409331,34769.0,34768.0,5.98250261]
[1625667721150,0.01409331,34769.0,34768.0,1.7597171]
[1625667721331,0.01409331,34769.0,34768.0,5.97973144]
[1625667721510,0.01409331,34769.0,34768.0,5.98426476]
[1625667721930,0.09846506,34769.0,34768.0,5.98426476]
[1625667722291,0.01409331,34769.0,34768.0,5.98426476]
[1625667722593,0.01409331,34769.0,34768.0,6.49066004]
[1625667722712,0.09845346,34769.0,34768.0,6.49066004]
[1625667726081,0.26701416,34769.0,34768.0,6.49066004]
[1625667727282,0.09845346,34769.0,34768.0,6.49066004]
[1625667727941,0.26694738,34769.0,34768.0,6.49066004]
[1625667728661,0.09845346,34769.0,34768.0,6.49066004]
[1625667729869,0.26694627,34769.0,34768.0,6.49066004]
[1625667730889,0.01409331,34769.0,34768.0,6.49066004]
[1625667731128,0.01409331,34769.0,34768.0,8.17963523]
[1625667731250,0.01409251,34771.0,34768.0,8.17963523]
[1625667731490,0.01409245,34772.0,34769.0,0.00453273]
[1625667731612,0.01409245,34772.0,34770.0,6.52125349]
[1625667731791,0.01409245,34772.0,34771.0,6.24917572]
[1625667732034,0.01409245,34772.0,34771.0,6.25370845]
[1625667732152,0.01409245,34772.0,34771.0,6.49428389]
[1625667732273,0.25329713,34774.0,34771.0,6.99428389]
[1625667732400,0.25329713,34774.0,34771.0,7.99428389]
[1625667732523,0.2929,34795.0,34771.0,3.26517794]
[1625667732639,0.2929,34795.0,34773.0,1.0]
[1625667732756,0.67546426,34784.0,34783.0,4.71831238]
[1625667732878,0.67546426,34784.0,34783.0,5.04081238]
[1625667732999,0.50670111,34784.0,34783.0,6.55688152]
[1625667733117,0.52075109,34784.0,34783.0,6.55688152]
[1625667733238,0.52075109,34784.0,34783.0,10.06438152]
[1625667733357,0.52075109,34784.0,34783.0,10.06892957]
[1625667733476,0.18305884,34784.0,34783.0,10.06892957]
[1625667733657,0.16900886,34784.0,34783.0,10.06892957]
[1625667734139,0.16900886,34784.0,34783.0,10.79065589]
[1625667734440,1.18233763,34785.0,34783.0,10.79065589]
[1625667734441,0.25338992,34785.0,34783.0,10.79065589]
[1625667734680,0.50627375,34786.0,34784.0,6.2216667]
[1625667734681,0.25338035,34786.0,34784.0,6.2216667]
[1625667734859,0.25338035,34786.0,34785.0,4.70840621]
[1625667735220,0.168864,34786.0,34785.0,4.70840621]
[1625667736063,0.25338934,34786.0,34785.0,4.70840621]
[1625667736181,0.25338934,34786.0,34785.0,4.94898165]
[1625667736302,0.25320306,34787.0,34785.0,4.94898165]
[1625667736606,0.16874585,34787.0,34786.0,4.70499068]
[1625667737509,0.2532109,34787.0,34786.0,4.70499068]
[1625667738410,0.16874585,34787.0,34786.0,4.70499068]
[1625667738532,0.25308185,34788.0,34786.0,4.70499068]
[1625667738712,0.08441678,34788.0,34787.0,4.70251016]
[1625667738891,0.25308182,34789.0,34787.0,4.70251016]
[1625667739191,0.08441666,34789.0,34788.0,4.70114865]
[1625667739433,0.25308147,34790.0,34788.0,4.70114865]
[1625667739675,0.08441668,34789.0,34788.0,1.34318533]
[1625667739797,0.08441668,34789.0,34788.0,6.48468533]
[1625667739914,0.08441668,34789.0,34788.0,9.84243202]
[1625667740277,0.08441668,34789.0,34788.0,10.08300746]
[1625667740395,0.25303456,34790.0,34788.0,10.08300746]
[1625667740875,0.25303456,34790.0,34789.0,3.35541051]
[1625667741836,0.0843697,34790.0,34789.0,3.35541051]
[1625667742077,0.25293882,34790.0,34789.0,3.35541051]
[1625667742197,0.25293882,34790.0,34789.0,3.59598595]
[1625667742318,0.25280364,34791.0,34789.0,3.59598595]
[1625667742497,0.25280364,34791.0,34790.0,2.17974404]
[1625667742619,0.25280364,34791.0,34790.0,2.46184404]
[1625667743579,4.02880364,34791.0,34790.0,2.46184404]
[1625667743698,3.94447966,34791.0,34790.0,2.17974404]
[1625667744240,3.94447966,34791.0,34790.0,2.42031948]
[1625667744662,4.02876292,34791.0,34790.0,2.42031948]
[1625667745261,0.25276292,34791.0,34790.0,2.42031948]
[1625667745380,0.16847966,34791.0,34790.0,2.42031948]
[1625667745741,4.45417966,34791.0,34790.0,2.42031948]
[1625667745862,4.45417966,34791.0,34790.0,1.41428377]
[1625667746104,4.45417966,34791.0,34790.0,2.41982522]
[1625667746343,4.53843621,34791.0,34790.0,1.41428377]
[1625667747183,0.25273621,34791.0,34790.0,1.41428377]
[1625667747784,0.25260144,34791.0,34790.0,1.41428377]
[1625667748506,0.16834489,34791.0,34790.0,0.7435933]
[1625667748688,0.16834489,34791.0,34790.0,0.91116586]
[1625667748806,0.16834489,34791.0,34790.0,0.408148]
[1625667748807,0.50455855,34791.0,34790.0,0.408148]
[1625667748927,0.50455855,34791.0,34790.0,0.49193442]
[1625667749168,0.50455855,34791.0,34790.0,0.408148]
[1625667749409,0.50455855,34791.0,34790.0,0.24057544]
[1625667749649,0.50455855,34791.0,34790.0,0.40809866]
[1625667750316,0.16826585,34791.0,34790.0,0.40809866]
[1625667750493,1.17714739,34792.0,34790.0,0.40809866]
[1625667750737,1.17714739,34792.0,34791.0,0.08374506]
[1625667752357,0.50446134,34792.0,34791.0,0.08374506]
[1625667753982,0.50446134,34792.0,34791.0,0.25114584]
[1625667754281,0.16822986,34792.0,34791.0,0.25114584]
[1625667754581,0.25241786,34792.0,34791.0,0.25114584]
[1625667754821,0.16822986,34792.0,34791.0,0.25114584]
[1625667755061,0.25241653,34792.0,34791.0,0.25114584]
[1625667755786,0.25241653,34792.0,34791.0,0.16740078]
[1625667756024,0.25241653,34792.0,34791.0,0.25120505]
[1625667756744,0.26646759,34792.0,34791.0,0.25120505]
[1625667756863,0.18228092,34792.0,34791.0,0.08380427]
[1625667757104,0.51826174,34792.0,34790.0,0.49202381]
[1625667757467,0.51826174,34792.0,34791.0,0.1116]
[1625667757586,0.50421068,34792.0,34791.0,0.1431]
[1625667757885,0.51826189,34792.0,34791.0,0.1431]
[1625667759149,0.1822214,34792.0,34791.0,0.22691247]
[1625667759387,0.26639046,34792.0,34791.0,0.22691247]
[1625667759629,0.26639046,34792.0,34791.0,0.39456036]
[1625667760892,0.09822027,34792.0,34791.0,0.39456036]
[1625667761312,0.09822027,34792.0,34791.0,0.31074789]
[1625667761554,0.09822027,34792.0,34791.0,0.39453758]
[1625667762577,0.26636615,34792.0,34791.0,0.22688969]
[1625667763778,0.26636615,34792.0,34791.0,0.1431]
[1625667764137,0.18219709,34792.0,34791.0,0.1431]
[1625667764740,0.21604978,34792.0,34791.0,0.1431]
[1625667766840,0.21604978,34792.0,34789.0,0.74342313]
[1625667767081,0.18219709,34792.0,34789.0,0.74342313]
[1625667767202,0.01405173,34791.0,34790.0,0.00454645]
[1625667772491,0.40872132,34792.0,34790.0,0.00454645]
[1625667772672,0.01405166,34791.0,34790.0,0.00454645]
[1625667772971,0.01405166,34791.0,34790.0,0.50770381]
[1625667775251,0.10035166,34791.0,34790.0,0.50770381]
[1625667775372,0.10035166,34791.0,34790.0,1.17842441]
[1625667775733,0.01405166,34791.0,34790.0,1.17842441]
[1625667778015,0.01405166,34791.0,34790.0,2.18510865]
[1625667781923,0.01405166,34791.0,34790.0,3.35922468]
[1625667784508,0.10075166,34791.0,34790.0,3.35922468]
[1625667784926,0.01405166,34791.0,34790.0,2.18510865]
[1625667785347,0.01405166,34791.0,34790.0,3.35973567]
[1625667787389,0.01405166,34791.0,34790.0,4.70307023]
[1625667789254,0.52018284,34791.0,34790.0,4.70307023]
[1625667790398,2.20911184,34791.0,34790.0,4.70307023]
[1625667790633,3.89804137,34791.0,34790.0,4.70307023]
[1625667790753,2.20911237,34791.0,34790.0,4.70307023]
[1625667791354,2.20911237,34791.0,34790.0,2.70167023]
[1625667791598,3.39131717,34791.0,34790.0,2.70167023]
[1625667792376,4.74402814,34791.0,34790.0,0.70027023]
[1625667792616,4.74402814,34791.0,34790.0,7.023e-05]
[1625667793639,6.26586788,34791.0,34789.0,0.24057544]
[1625667793880,1.5358914,34791.0,34789.0,0.24057544]
[1625667794000,1.52183974,34791.0,34789.0,0.24057544]
[1625667796167,1.52183974,34791.0,34785.0,1.75977111]
[1625667796646,1.52183974,34791.0,34786.0,0.00462287]
[1625667797247,0.79412088,34787.0,34786.0,0.00462287]
[1625667797666,0.80797233,34787.0,34786.0,0.00462287]
[1625667800010,4.35407233,34787.0,34786.0,0.00462287]
[1625667801095,4.35407233,34787.0,34783.0,1.51855756]
[1625667801213,4.35407233,34787.0,34784.0,1.51871297]
[1625667801455,0.01386457,34786.0,34784.0,1.5233304]
[1625667801876,0.01386457,34786.0,34785.0,0.00461743]
[1625667803140,0.25444001,34786.0,34785.0,0.00461743]
[1625667804397,0.25444001,34786.0,34783.0,1.52363276]
[1625667804763,0.01386984,34785.0,34784.0,0.00461578]
[1625667806380,0.01386984,34785.0,34783.0,0.00461582]
[1625667806624,0.01386984,34785.0,34784.0,0.00461582]
[1625667807161,0.01386984,34785.0,34783.0,0.00461579]
[1625667807341,0.01386984,34785.0,34783.0,1.5234072]
[1625667807462,0.01386984,34785.0,34784.0,0.00461579]
[1625667807703,0.01386984,34785.0,34784.0,1.35465814]
[1625667812456,1.19685096,34785.0,34784.0,2.53576326]
[1625667815519,0.01386984,34785.0,34784.0,0.00461579]
[1625667815764,1.19610793,34785.0,34784.0,2.53429931]
[1625667816180,1.19610793,34785.0,34784.0,2.53892579]
[1625667822492,2.20908842,34785.0,34784.0,3.5524331]
[1625667836672,2.29508842,34785.0,34784.0,3.5524331]
[1625667836793,2.20908842,34785.0,34784.0,3.5524331]
[1625667836912,2.20908842,34785.0,34784.0,1.7244331]
[1625667837214,2.24294529,34785.0,34784.0,1.01813379]
[1625667837393,2.24294529,34785.0,34784.0,0.83113379]
[1625667837512,2.24294529,34785.0,34776.0,0.9381]
[1625667837513,0.0869,34784.0,34776.0,0.9381]
[1625667837632,1.51556976,34782.0,34776.0,0.9381]
[1625667837876,1.51513577,34781.0,34776.0,0.9381]
[1625667837997,1.52899442,34781.0,34777.0,0.00462162]
[1625667838117,1.77005442,34781.0,34777.0,0.00462162]
[1625667838296,0.01385886,34780.0,34777.0,0.00462162]
[1625667838416,1.52876181,34780.0,34777.0,0.00462162]
[1625667838538,4.0743,34778.0,34772.0,1.52044117]
[1625667838656,4.0743,34778.0,34771.0,1.52054025]
[1625667838836,0.0138591,34777.0,34773.0,0.00462187]
[1625667839078,0.0138591,34777.0,34772.0,0.00462189]
[1625667839378,0.0138591,34777.0,34774.0,0.00462194]
[1625667839620,0.0138591,34777.0,34773.0,0.00462198]
[1625667839925,0.0138591,34777.0,34770.0,1.51967821]
[1625667840099,5.27171,34771.0,34770.0,1.51967821]
[1625667840460,5.27171,34771.0,34770.0,1.52430029]
[1625667840584,5.27171,34771.0,34770.0,0.00462208]
[1625667840703,5.28557006,34771.0,34770.0,0.00462208]
[1625667841001,5.28557006,34771.0,34768.0,0.00462242]
[1625667841242,5.28557006,34771.0,34770.0,0.00462247]
[1625667841485,0.01386023,34770.0,34769.0,0.00462247]
[1625667842024,0.01386023,34770.0,34767.0,0.00462251]
[1625667842265,0.01386023,34770.0,34769.0,0.00462278]
[1625667842502,0.01386023,34770.0,34768.0,0.00462273]
[1625667842804,0.01386023,34770.0,34766.0,0.00462287]
[1625667843044,0.01386023,34770.0,34769.0,0.00462289]
[1625667843287,0.01386023,34770.0,34767.0,0.00462298]
[1625667843584,0.01386023,34770.0,34765.0,0.00462298]
[1625667843824,0.01386023,34770.0,34768.0,0.00462298]
[1625667844127,0.01386023,34770.0,34765.0,0.00462301]
[1625667844425,0.01386023,34770.0,34769.0,0.00462301]
[1625667844667,0.01386023,34770.0,34766.0,0.00462301]
[1625667844906,0.01386023,34770.0,34769.0,0.00462301]
[1625667845151,0.01386023,34770.0,34764.0,0.00462301]
[1625667845509,0.48115088,34765.0,34764.0,0.00462301]
[1625667846776,3.7535,34764.0,34763.0,3.46699612]
[1625667846894,4.0299,34764.0,34763.0,1.9492]
[1625667847015,4.0299,34764.0,34763.0,1.95382302]
[1625667847555,4.0299,34764.0,34763.0,3.46628301]
[1625667847737,4.0299,34764.0,34763.0,1.9492]
[1625667847858,4.75162632,34764.0,34763.0,1.9492]
[1625667850082,4.0299,34764.0,34763.0,1.9492]
[1625667850741,4.75162632,34764.0,34763.0,1.9492]
[1625667851103,4.0299,34764.0,34763.0,1.9492]
[1625667851525,4.0299,34764.0,34763.0,2.62299191]
[1625667851945,4.0299,34764.0,34763.0,3.97017932]
[1625667852485,0.33427474,34769.0,34763.0,3.97017932]
[1625667852607,0.33427474,34769.0,34763.0,4.19217932]
[1625667852726,0.57485018,34769.0,34768.0,0.67359324]
[1625667853025,0.24057544,34769.0,34768.0,0.67359324]
[1625667854710,0.96230176,34769.0,34768.0,0.67359324]
[1625667857113,0.96230176,34769.0,34768.0,1.85203741]
[1625667859638,0.96230176,34769.0,34768.0,0.67359324]
[1625667866611,0.97616676,34769.0,34768.0,0.67821452]
[1625667867692,0.97616676,34769.0,34768.0,1.6877391]
[1625667871174,0.97616676,34769.0,34768.0,6.4484391]
[1625667873337,0.97616676,34769.0,34768.0,1.6877391]
[1625667873458,1.27276676,34769.0,34768.0,1.6877391]
[1625667876339,0.97616676,34769.0,34768.0,1.6877391]
[1625667881629,0.97616676,34769.0,34768.0,2.19261021]
[1625667883733,0.97616676,34769.0,34768.0,3.37081622]
[1625667886198,1.3131818,34769.0,34768.0,3.37081622]
[1625667887770,1.3131818,34769.0,34768.0,3.66742622]
[1625667887888,0.59145548,34769.0,34768.0,3.66742622]
[1625667888006,0.25444044,34769.0,34768.0,5.01398504]
[1625667888668,0.25444044,34769.0,34768.0,6.52786857]
[1625667889027,0.33716939,34774.0,34768.0,7.00901945]
[1625667889207,0.577741,34775.0,34768.0,7.00901945]
[1625667889452,0.24057544,34775.0,34774.0,4.70564579]
[1625667889568,0.3371428,34777.0,34774.0,9.49154579]
[1625667889689,0.3371428,34777.0,34774.0,9.49618326]
[1625667889869,0.84290934,34777.0,34776.0,3.3620698]
[1625667889989,0.84290934,34777.0,34776.0,3.5744598]
[1625667890292,0.85673253,34777.0,34776.0,3.57909717]
[1625667890410,0.35096599,34777.0,34776.0,3.57909717]
[1625667890950,0.35096599,34777.0,34776.0,4.06024805]
[1625667891071,0.8568824,34777.0,34776.0,5.40545628]
[1625667891552,0.84305921,34777.0,34776.0,5.40545628]
[1625667891913,0.50591641,34777.0,34776.0,5.40545628]
[1625667892880,1.18095668,34777.0,34776.0,5.40545628]
[1625667897144,1.18095668,34777.0,34776.0,4.9243054]
[1625667897566,1.18095668,34777.0,34776.0,5.40545628]
[1625667897745,1.18095668,34777.0,34776.0,5.40081891]
[1625667898826,2.19413189,34777.0,34776.0,5.40081891]
[1625667899910,2.19413189,34777.0,34776.0,4.91966803]
[1625667900511,2.19413189,34777.0,34776.0,5.40081891]
[1625667904476,1.18095668,34777.0,34776.0,5.40081891]
[1625667912590,1.18095668,34777.0,34776.0,5.40544577]
[1625667915597,1.19480842,34777.0,34776.0,5.40544577]
[1625667924191,1.19480842,34777.0,34776.0,5.49214577]
[1625667924311,1.19480842,34777.0,34776.0,5.40544577]
[1625667929961,2.20757354,34777.0,34776.0,5.40544577]
[1625667936454,2.20757354,34777.0,34776.0,5.16487033]
[1625667936574,2.44368354,34777.0,34776.0,5.16487033]
[1625667936694,2.44368354,34777.0,34776.0,4.95248033]
[1625667936813,3.62567897,34777.0,34776.0,3.6072721]
[1625667937596,3.62567897,34777.0,34776.0,3.36669666]
[1625667937776,4.10682985,34777.0,34776.0,3.36669666]
[1625667940239,5.45841414,34777.0,34776.0,3.36669666]
[1625667940479,4.10682985,34777.0,34776.0,3.36669666]
[1625667941141,5.45841923,34777.0,34776.0,3.36669666]
[1625667941504,5.45841923,34777.0,34776.0,2.18997223]
[1625667942163,6.97935615,34777.0,34776.0,2.18997223]
[1625667942463,6.97935615,34777.0,34776.0,1.17672443]
[1625667943186,6.97935615,34777.0,34776.0,2.18793424]
[1625667943428,6.97935615,34777.0,34776.0,1.17672443]
[1625667943546,6.49820527,34777.0,34776.0,1.17672443]
[1625667943730,6.49820527,34777.0,34776.0,0.50431047]
[1625667944028,6.49820527,34777.0,34776.0,0.84151209]
[1625667944148,7.46050703,34777.0,34776.0,0.84151209]
[1625667944572,7.46050703,34777.0,34776.0,0.50431047]
[1625667944691,7.46050703,34777.0,34776.0,0.25091047]
[1625667944809,7.49437887,34777.0,34776.0,0.33734533]
[1625667944992,9.18520445,34777.0,34773.0,0.50655166]
[1625667945108,0.0854,34776.0,34773.0,0.50655166]
[1625667945230,5.74517962,34774.0,34771.0,0.50620204]
[1625667945530,5.74523815,34772.0,34771.0,0.16873401]
[1625667945649,5.83203815,34772.0,34771.0,0.16873401]
[1625667945892,5.84586589,34772.0,34771.0,0.16873401]
[1625667946010,5.84586589,34772.0,34771.0,0.506241]
[1625667946131,6.32701677,34772.0,34771.0,0.506241]
[1625667946311,6.32701677,34772.0,34770.0,0.50639907]
[1625667946431,6.82701677,34772.0,34769.0,0.67519876]
[1625667946554,5.74676888,34771.0,34767.0,0.67561905]
[1625667946674,0.5,34770.0,34767.0,0.67561905]
[1625667946794,5.74560931,34768.0,34765.0,0.6760043]
[1625667947033,5.74569671,34766.0,34765.0,0.6760043]
[1625667947214,4.22483166,34766.0,34765.0,0.08440901]
[1625667947452,4.23866077,34766.0,34765.0,0.08440901]
[1625667947573,9.78125707,34766.0,34765.0,0.08440901]
[1625667947813,9.78125707,34766.0,34764.0,0.0844094]
[1625667948053,0.72172632,34764.0,34763.0,1.9492]
[1625667948234,4.26582696,34764.0,34763.0,1.9492]
[1625667951415,2.91571749,34764.0,34763.0,1.9492]
[1625667951654,4.26382802,34764.0,34763.0,1.9492]
[1625667952196,2.91571749,34764.0,34763.0,1.9492]
[1625667960849,1.73435061,34764.0,34763.0,1.9492]